bitfinex/quotes_BTCUSD_20251029
["timestamp","ask_amount","ask_price","bid_price","bid_amount"]
[1761737182242,0.04038688,113280.0,113270.0,0.001]
[1761737182501,0.01654823,113280.0,113270.0,0.001]
[1761737182961,0.02860024,113280.0,113270.0,0.001]
[1761737183402,0.02859937,113280.0,113270.0,0.001]
[1761737183592,0.03027937,113280.0,113270.0,0.001]
[1761737183827,0.37027937,113280.0,113270.0,0.001]
[1761737184323,0.35373201,113280.0,113270.0,0.001]
[1761737186826,2.394116,113280.0,113270.0,0.001]
[1761737187043,2.48393501,113280.0,113270.0,0.001]
[1761737187709,2.68393501,113280.0,113270.0,0.001]
[1761737187910,2.88393501,113280.0,113270.0,0.001]
[1761737188373,2.88393501,113280.0,113250.0,0.0265887]
[1761737188592,0.00084,113260.0,113250.0,0.0265887]
[1761737189011,0.00168,113260.0,113250.0,0.0265887]
[1761737190108,0.00168,113260.0,113250.0,0.0295887]
[1761737191166,0.34994755,113260.0,113250.0,0.00304834]
[1761737191379,0.36899504,113260.0,113250.0,0.00304834]
[1761737191603,0.36899504,113260.0,113250.0,0.50304834]
[1761737192259,0.36899504,113260.0,113250.0,0.50004834]
[1761737192673,0.36999504,113260.0,113250.0,0.50004834]
[1761737192927,0.37099504,113260.0,113250.0,0.50004834]
[1761737201118,0.37015504,113260.0,113250.0,0.50004834]
[1761737201876,0.37015504,113260.0,113250.0,0.51739834]
[1761737202333,0.37015504,113260.0,113250.0,0.50004834]
[1761737211765,0.37015504,113260.0,113250.0,0.51739834]
[1761737212443,0.39399369,113260.0,113250.0,0.51739834]
[1761737212877,0.39399369,113260.0,113250.0,0.50004834]
[1761737217258,0.39399369,113260.0,113250.0,0.51739834]
[1761737218145,0.39315369,113260.0,113250.0,0.53002834]
[1761737219999,0.39315369,113260.0,113250.0,0.55431834]
[1761737220421,0.39215369,113260.0,113250.0,0.55431834]
[1761737220638,0.39115369,113260.0,113250.0,0.55431834]
[1761737221566,0.39115369,113260.0,113250.0,0.58086047]
[1761737221993,0.39115369,113260.0,113250.0,0.58386047]
[1761737223155,0.36731504,113260.0,113250.0,0.58386047]
[1761737223790,0.02731504,113260.0,113250.0,0.58386047]
[1761737223994,0.00826755,113260.0,113250.0,0.58386047]
[1761737224190,0.42293856,113270.0,113250.0,0.58386047]
[1761737224406,0.43949717,113270.0,113260.0,0.02998]
[1761737224914,0.39115369,113270.0,113260.0,0.02998]
[1761737225136,0.39115369,113270.0,113260.0,0.05427]
[1761737225336,0.05115369,113270.0,113260.0,0.05427]
[1761737225536,0.00826755,113270.0,113260.0,0.05527]
[1761737225806,0.00826755,113270.0,113260.0,0.08181013]
[1761737226026,0.34219057,113280.0,113260.0,0.09946861]
[1761737226242,0.06321619,113280.0,113270.0,0.05427]
[1761737226452,0.02033005,113280.0,113270.0,0.05427]
[1761737227399,0.02133005,113280.0,113270.0,0.05427]
[1761737227606,0.02133005,113280.0,113270.0,0.07259591]
[1761737228150,0.02133005,113280.0,113270.0,0.05427]
[1761737228520,0.00927804,113280.0,113270.0,0.05427]
[1761737228738,0.02383865,113290.0,113270.0,0.07192692]
[1761737228894,0.001,113280.0,113270.0,0.05457692]
[1761737229100,0.002,113280.0,113270.0,0.05457692]
[1761737229460,2.0,113290.0,113270.0,0.07084692]
[1761737229645,0.36731395,113290.0,113280.0,0.02858]
[1761737229845,0.36731395,113290.0,113280.0,0.05152]
[1761737230268,0.36731395,113290.0,113280.0,0.02858]
[1761737230497,0.36731395,113290.0,113280.0,0.05511412]
[1761737230721,0.37845775,113290.0,113280.0,0.05511412]
[1761737230864,0.37845775,113290.0,113280.0,0.02858]
[1761737232074,0.37845775,113290.0,113280.0,0.02958]
[1761737232447,0.37845775,113290.0,113280.0,0.001]
[1761737232649,0.50863485,113290.0,113280.0,0.001]
[1761737232850,2.54041972,113290.0,113280.0,0.001]
[1761737233815,0.34,113280.0,113250.0,0.51267834]
[1761737234023,0.36731395,113280.0,113250.0,0.53601834]
[1761737234230,0.3911526,113280.0,113250.0,0.53601834]
[1761737234977,0.39108622,113280.0,113250.0,0.53601834]
[1761737235185,0.36729746,113280.0,113250.0,0.53601834]
[1761737235429,2.0,113270.0,113250.0,0.55214834]
[1761737235585,0.019031,113270.0,113250.0,0.55214834]
[1761737235790,0.03828198,113270.0,113250.0,0.55214834]
[1761737236775,0.37828198,113270.0,113250.0,0.55214834]
[1761737236913,0.40557388,113270.0,113250.0,0.55214834]
[1761737237284,0.3672919,113270.0,113250.0,0.55214834]
[1761737237547,0.3672919,113270.0,113250.0,0.55314834]
[1761737238247,0.3672919,113270.0,113260.0,0.01613]
[1761737239651,0.3672919,113270.0,113260.0,0.01713]
[1761737240656,0.3482609,113270.0,113260.0,0.02849]
[1761737240984,0.3672919,113270.0,113260.0,0.02849]
[1761737241860,0.0272919,113270.0,113260.0,0.02849]
[1761737241992,0.3482609,113270.0,113260.0,0.02849]
[1761737242188,0.3672919,113270.0,113260.0,0.02849]
[1761737242595,0.3672919,113270.0,113260.0,0.001]
[1761737243223,0.40639997,113270.0,113260.0,0.001]
[1761737244295,0.06639997,113270.0,113260.0,0.001]
[1761737244525,0.3482609,113270.0,113260.0,0.001]
[1761737244754,0.3672919,113270.0,113260.0,0.001]
[1761737245666,0.36729597,113270.0,113260.0,0.001]
[1761737249251,0.05108473,113270.0,113260.0,0.001]
[1761737249462,0.37205373,113270.0,113260.0,0.001]
[1761737249678,0.39108473,113270.0,113260.0,0.001]
[1761737255782,0.05108473,113270.0,113260.0,0.001]
[1761737255989,0.37205373,113270.0,113260.0,0.001]
[1761737256199,0.39108473,113270.0,113260.0,0.001]
[1761737257072,0.05108473,113270.0,113260.0,0.001]
[1761737257239,0.37205373,113270.0,113260.0,0.001]
[1761737257445,0.39108473,113270.0,113260.0,0.001]
[1761737258518,0.05108473,113270.0,113260.0,0.001]
[1761737258745,0.37205373,113270.0,113260.0,0.001]
[1761737258948,0.39937169,113270.0,113260.0,0.001]
[1761737260122,0.43115656,113270.0,113260.0,0.001]
[1761737260449,2.44771398,113270.0,113260.0,0.001]
[1761737261243,2.44771775,113270.0,113260.0,0.001]
[1761737261871,2.44871775,113270.0,113260.0,0.001]
[1761737262085,2.42492899,113270.0,113260.0,0.001]
[1761737262522,2.34,113260.0,113250.0,0.50004834]
[1761737262765,0.39115229,113260.0,113250.0,0.50004834]
[1761737263885,0.39115229,113260.0,113250.0,0.50104834]
[1761737265225,0.43950139,113260.0,113250.0,0.50104834]
[1761737265693,0.40771652,113260.0,113250.0,0.50104834]
[1761737266393,0.39115229,113260.0,113250.0,0.50104834]
[1761737270282,0.39116587,113260.0,113250.0,0.50104834]
[1761737272051,2.92509571,113260.0,113250.0,0.50104834]
[1761737272255,2.98911114,113260.0,113250.0,0.50104834]
[1761737272460,2.94165184,113260.0,113250.0,0.3386815]
[1761737273321,2.94165184,113260.0,113250.0,0.3376815]
[1761737273537,2.9905522,113260.0,113250.0,0.3376815]
[1761737273748,2.94465184,113260.0,113250.0,0.3376815]
[1761737273975,2.50846956,113260.0,113250.0,0.3376815]
[1761737274234,0.41069321,113260.0,113250.0,0.3891515]
[1761737274454,0.02930955,113260.0,113250.0,0.3891515]
[1761737274707,0.01127855,113260.0,113250.0,0.3891515]
[1761737274929,0.35127855,113260.0,113250.0,0.3658115]
[1761737275133,0.37030955,113260.0,113250.0,0.3658115]
[1761737275985,0.03030955,113260.0,113250.0,0.3658115]
[1761737276118,0.35669226,113260.0,113250.0,0.3376815]
[1761737276341,0.37572326,113260.0,113250.0,0.3376815]
[1761737278723,0.03572326,113260.0,113250.0,0.3376815]
[1761737278932,0.35669226,113260.0,113250.0,0.3376815]
[1761737279207,0.37030955,113260.0,113250.0,0.3376815]
[1761737280528,0.03030955,113260.0,113250.0,0.3376815]
[1761737280811,0.35127855,113260.0,113250.0,0.3534615]
[1761737281048,0.37030955,113260.0,113250.0,0.3534615]
[1761737281605,0.03030955,113260.0,113250.0,0.3534615]
[1761737281848,0.35127855,113260.0,113250.0,0.3534615]
[1761737282060,0.37030955,113260.0,113250.0,0.3534615]
[1761737284128,0.39413708,113260.0,113250.0,0.3534615]
[1761737284362,0.39413708,113260.0,113250.0,0.3376815]
[1761737286129,0.05413708,113260.0,113250.0,0.3376815]
[1761737286341,0.37510608,113260.0,113250.0,0.3658115]
[1761737286537,0.39413708,113260.0,113250.0,0.3658115]
[1761737288369,0.39413708,113260.0,113250.0,0.3376815]
[1761737288594,2.39413708,113260.0,113250.0,0.3376815]
[1761737289962,2.44248096,113260.0,113250.0,0.3376815]
[1761737290376,2.41865343,113260.0,113250.0,0.3376815]
[1761737290788,2.4424955,113260.0,113250.0,0.3376815]
[1761737291495,2.49139586,113260.0,113250.0,0.3376815]
[1761737291727,2.4424955,113260.0,113250.0,0.3376815]
[1761737292517,2.73671111,113260.0,113220.0,0.03042625]
[1761737292725,2.0,113230.0,113220.0,0.03047459]
[1761737292935,2.0,113230.0,113220.0,0.04674459]
[1761737293243,2.01906589,113230.0,113220.0,0.03047459]
[1761737293447,2.15883422,113230.0,113220.0,0.03047459]
[1761737293791,2.34827531,113230.0,113220.0,0.03047459]
[1761737295239,2.34,113230.0,113220.0,0.03047459]
[1761737295662,2.34,113230.0,113220.0,0.03347459]
[1761737297699,2.34,113230.0,113220.0,0.04974459]
[1761737298349,2.34,113230.0,113220.0,0.06421646]
[1761737301486,0.34,113230.0,113220.0,0.06421646]
[1761737302550,0.34,113230.0,113220.0,0.08799646]
[1761737303823,0.34,113230.0,113220.0,0.06421646]
[1761737305425,0.35903765,113230.0,113220.0,0.06421646]
[1761737307854,0.39494141,113230.0,113220.0,0.06421646]
[1761737311712,0.39494141,113230.0,113220.0,0.03617646]
[1761737314404,0.01903765,113230.0,113220.0,0.03617646]
[1761737314586,2.0,113240.0,113220.0,0.03617646]
[1761737314786,2.0,113230.0,113220.0,0.03347459]
[1761737314999,0.01903765,113230.0,113220.0,0.03347459]
[1761737315214,2.0,113230.0,113220.0,0.03347459]
[1761737315419,0.01903765,113230.0,113220.0,0.03317646]
[1761737315618,2.0,113230.0,113220.0,0.03317646]
[1761737315830,0.01903765,113230.0,113220.0,0.03417646]
[1761737316040,0.01903765,113230.0,113220.0,0.03317646]
[1761737316041,2.0,113230.0,113220.0,0.03317646]
[1761737316250,0.01903765,113230.0,113220.0,0.03317646]
[1761737316451,2.0,113230.0,113220.0,0.03617646]
[1761737316664,0.01903765,113230.0,113220.0,0.03617646]
[1761737316864,2.0,113230.0,113220.0,0.03617646]
[1761737317062,0.01903765,113230.0,113220.0,0.03617646]
[1761737317343,2.0,113230.0,113220.0,0.05358646]
[1761737317583,0.34,113240.0,113220.0,0.09842511]
[1761737317769,0.36733753,113240.0,113230.0,0.03002]
[1761737317893,0.02733753,113240.0,113230.0,0.05504]
[1761737318100,0.00827408,113240.0,113230.0,0.0575298]
[1761737318365,2.0,113240.0,113230.0,0.0024898]
[1761737318553,0.02733753,113240.0,113230.0,0.0024898]
[1761737318800,0.00827408,113240.0,113230.0,0.0024898]
[1761737319129,0.00827408,113240.0,113230.0,0.0034898]
[1761737319359,2.0,113240.0,113230.0,0.0034898]
[1761737319566,0.02733753,113240.0,113230.0,0.0034898]
[1761737319743,0.00827408,113240.0,113230.0,0.0034898]
[1761737319987,2.0,113240.0,113230.0,0.0034898]
[1761737320191,2.02733753,113240.0,113230.0,0.0034898]
[1761737320399,0.02733753,113240.0,113230.0,0.0034898]
[1761737320589,0.00827408,113240.0,113230.0,0.0034898]
[1761737321000,2.0,113240.0,113230.0,0.0034898]
[1761737321212,2.02733753,113240.0,113230.0,0.0034898]
[1761737321428,0.02733753,113240.0,113230.0,0.0034898]
[1761737321720,0.00827408,113240.0,113230.0,0.0034898]
[1761737321940,0.25117879,113250.0,113230.0,0.0034898]
[1761737322161,2.0,113240.0,113230.0,0.001]
[1761737322380,0.02733753,113240.0,113230.0,0.001]
[1761737322581,0.00827408,113240.0,113230.0,0.001]
[1761737322783,2.00827408,113240.0,113230.0,0.001]
[1761737322984,0.01906345,113240.0,113220.0,0.06810459]
[1761737323193,0.00827408,113240.0,113220.0,0.06810459]
[1761737323635,0.25317879,113250.0,113220.0,0.06810459]
[1761737323878,0.26874868,113250.0,113220.0,0.06810459]
[1761737324078,2.0,113240.0,113220.0,0.06810459]
[1761737324288,0.02733753,113240.0,113220.0,0.06810459]
[1761737324508,0.03211534,113240.0,113220.0,0.06810459]
[1761737325230,0.03211534,113240.0,113230.0,0.001]
[1761737325459,0.03211534,113240.0,113220.0,0.06810459]
[1761737325900,0.03211534,113240.0,113220.0,0.06910459]
[1761737332129,0.06041171,113240.0,113220.0,0.06910459]
[1761737333269,0.06041171,113240.0,113230.0,0.0024898]
[1761737334715,0.40041171,113240.0,113230.0,0.0024898]
[1761737334952,2.55764328,113240.0,113230.0,0.0034898]
[1761737335641,2.53380202,113240.0,113230.0,0.0034898]
[1761737335836,2.58126132,113240.0,113230.0,0.0034898]
[1761737336220,2.58126132,113240.0,113230.0,0.0024898]
[1761737337635,2.58226132,113240.0,113230.0,0.0024898]
[1761737337849,2.58326132,113240.0,113230.0,0.0024898]
[1761737338951,2.5832604,113240.0,113230.0,0.0024898]
[1761737341337,2.58327048,113240.0,113230.0,0.0024898]
[1761737341747,2.53581118,113240.0,113230.0,0.0024898]
[1761737342162,2.4176958,113240.0,113230.0,0.0024898]
[1761737342371,0.40975188,113240.0,113230.0,0.0024898]
[1761737342552,0.05319361,113240.0,113230.0,0.0575298]
[1761737342824,0.002,113240.0,113230.0,0.07519296]
[1761737343245,0.002,113240.0,113230.0,0.19155694]
[1761737343452,0.002,113240.0,113230.0,0.21502109]
[1761737343655,0.001,113240.0,113230.0,0.19735793]
[1761737344280,0.42297713,113260.0,113230.0,0.19735793]
[1761737344487,0.43953067,113260.0,113240.0,0.03763]
[1761737344885,0.43953067,113260.0,113250.0,0.00206577]
[1761737345203,0.43964067,113260.0,113250.0,0.00206577]
[1761737345409,0.44064067,113260.0,113250.0,0.03208577]
[1761737345615,0.44064067,113260.0,113250.0,0.06157535]
[1761737345810,0.39430226,113260.0,113250.0,0.06157535]
[1761737346025,0.05230226,113260.0,113250.0,0.05710577]
[1761737346237,0.00927778,113260.0,113250.0,0.05710577]
[1761737346652,0.00827778,113260.0,113250.0,0.05710577]
[1761737346960,0.36384095,113270.0,113250.0,0.05710577]
[1761737347322,0.001,113260.0,113250.0,0.03915107]
[1761737347540,0.36734661,113270.0,113260.0,0.01237]
[1761737347758,0.36734661,113270.0,113260.0,0.05326]
[1761737348137,0.36945661,113270.0,113260.0,0.05326]
[1761737348341,0.36945661,113270.0,113260.0,0.02812]
[1761737348941,0.36945661,113270.0,113260.0,0.02912]
[1761737352622,0.36945661,113270.0,113260.0,0.03097381]
[1761737354708,0.36734661,113270.0,113260.0,0.05664381]
[1761737357393,0.35907353,113270.0,113260.0,0.05664381]
[1761737358036,0.36055353,113270.0,113260.0,0.03097381]
[1761737358244,0.35907353,113270.0,113260.0,0.05664381]
[1761737360633,0.093309,113290.0,113260.0,0.05664381]
[1761737360836,0.34,113280.0,113270.0,0.03815]
[1761737361045,0.34,113280.0,113270.0,0.05553]
[1761737361256,0.01119208,113290.0,113270.0,0.05553]
[1761737361468,0.01119208,113290.0,113280.0,0.05553]
[1761737361897,4.828e-05,113290.0,113280.0,0.14534901]
[1761737362320,0.00104828,113290.0,113280.0,0.17187945]
[1761737362970,4.828e-05,113290.0,113280.0,0.17687945]
[1761737363201,4.828e-05,113290.0,113280.0,0.19681539]
[1761737364224,4.828e-05,113290.0,113280.0,0.17287945]
[1761737364439,4.828e-05,113290.0,113280.0,0.19053481]
[1761737364645,4.828e-05,113290.0,113280.0,0.19853481]
[1761737364855,4.828e-05,113290.0,113280.0,0.18087945]
[1761737366559,4.828e-05,113290.0,113280.0,0.18230945]
[1761737368229,4.828e-05,113290.0,113280.0,0.19487374]
[1761737368477,4.828e-05,113290.0,113280.0,0.18230945]
[1761737372514,4.828e-05,113290.0,113280.0,0.58980496]
[1761737372978,4.828e-05,113290.0,113280.0,0.92980496]
[1761737374874,4.828e-05,113290.0,113280.0,0.18230945]
[1761737376052,4.828e-05,113290.0,113280.0,0.17330945]
[1761737376414,4.828e-05,113290.0,113280.0,0.19196481]
[1761737376569,4.828e-05,113290.0,113280.0,0.19796481]
[1761737376827,4.828e-05,113290.0,113280.0,0.18030945]
[1761737378613,4.828e-05,113290.0,113280.0,0.23577067]
[1761737380211,4.828e-05,113290.0,113280.0,0.21649173]
[1761737385344,0.00828742,113290.0,113280.0,0.21649173]
[1761737386974,4.828e-05,113290.0,113280.0,0.21649173]
[1761737387391,0.00829405,113290.0,113280.0,0.21649173]
[1761737389267,0.00829405,113290.0,113280.0,0.58722072]
[1761737391408,0.00829405,113290.0,113280.0,0.64719079]
[1761737393268,0.00829405,113290.0,113280.0,0.58722072]
[1761737394954,0.00829405,113290.0,113280.0,0.21649173]
[1761737395438,0.00829405,113290.0,113280.0,0.58722072]
[1761737398869,0.00829405,113290.0,113280.0,0.21649173]
[1761737399097,0.00829405,113290.0,113280.0,0.18030945]
[1761737400679,0.00829405,113290.0,113280.0,0.06482044]
[1761737400902,0.00829405,113290.0,113280.0,0.03496044]
[1761737401125,0.05109371,113290.0,113280.0,0.06343044]
[1761737401339,0.05109371,113290.0,113280.0,0.06098]
[1761737401555,0.00829405,113290.0,113280.0,0.05398]
[1761737401983,0.00829405,113290.0,113280.0,0.05898]
[1761737402252,0.00829405,113290.0,113280.0,0.05398]
[1761737402470,0.00829405,113290.0,113280.0,0.05698]
[1761737404048,0.00829405,113290.0,113280.0,0.063926]
[1761737404271,0.00829405,113290.0,113280.0,0.14679901]
[1761737405376,0.00829405,113290.0,113280.0,0.14379901]
[1761737405586,4.828e-05,113290.0,113280.0,0.14379901]
[1761737405803,4.828e-05,113290.0,113280.0,0.14879901]
[1761737406245,4.828e-05,113290.0,113280.0,0.519528]
[1761737406462,4.828e-05,113290.0,113280.0,0.5727288]
[1761737407333,4.828e-05,113290.0,113280.0,0.60891108]
[1761737407766,4.828e-05,113290.0,113280.0,0.23818209]
[1761737407985,4.828e-05,113290.0,113280.0,0.18498129]
[1761737408199,4.828e-05,113290.0,113280.0,0.55171028]
[1761737408408,4.828e-05,113290.0,113280.0,0.55971028]
[1761737409078,4.828e-05,113290.0,113280.0,0.18898129]
[1761737409284,4.828e-05,113290.0,113280.0,0.55971028]
[1761737409677,4.828e-05,113290.0,113280.0,0.61692931]
[1761737410513,4.828e-05,113290.0,113280.0,0.9876583]
[1761737411251,4.828e-05,113290.0,113280.0,0.61692931]
[1761737414676,4.828e-05,113290.0,113280.0,0.18898129]
[1761737414881,4.828e-05,113290.0,113280.0,0.55971028]
[1761737419693,4.828e-05,113290.0,113280.0,0.18898129]
[1761737420115,4.828e-05,113290.0,113280.0,0.55971028]
[1761737420982,4.828e-05,113290.0,113280.0,0.18898129]
[1761737421184,4.828e-05,113290.0,113280.0,0.55971028]
[1761737421833,4.828e-05,113290.0,113280.0,0.18898129]
[1761737426172,4.828e-05,113290.0,113280.0,0.55971028]
[1761737426793,4.828e-05,113290.0,113280.0,0.18898129]
[1761737428621,0.02722442,113320.0,113290.0,0.35131]
[1761737428807,0.00831404,113320.0,113310.0,0.01614]
[1761737429006,0.00831404,113320.0,113300.0,0.12478901]
[1761737429208,0.00831404,113320.0,113290.0,0.03497]
[1761737429440,4.833e-05,113320.0,113290.0,0.12478901]
[1761737431900,0.36657736,113320.0,113290.0,0.12478901]
[1761737432123,0.39380178,113320.0,113290.0,0.12478901]
[1761737432942,0.39380178,113320.0,113300.0,0.01131]
[1761737433142,0.39380178,113320.0,113300.0,0.03497]
[1761737434866,0.39380178,113320.0,113300.0,0.05111]
[1761737435959,0.39380178,113320.0,113300.0,0.02745]
[1761737438155,0.39380178,113320.0,113300.0,0.01131]
[1761737438581,0.39380178,113320.0,113300.0,0.02744]
[1761737438785,0.41764273,113320.0,113300.0,0.02744]
[1761737441251,0.41764273,113320.0,113300.0,0.04998]
[1761737441658,0.41764273,113320.0,113300.0,0.02744]
[1761737446847,0.41764273,113320.0,113290.0,0.12366901]
[1761737447069,0.51271758,113320.0,113290.0,0.01131]
[1761737447293,0.51271758,113320.0,113280.0,0.0436]
[1761737447294,2.02384095,113310.0,113280.0,0.0436]
[1761737447520,0.05106537,113310.0,113280.0,0.13341901]
[1761737447737,0.03210666,113310.0,113280.0,0.13341901]
[1761737448508,0.00826571,113310.0,113300.0,0.02816]
[1761737449206,0.00826571,113310.0,113300.0,0.0507]
[1761737449429,0.4093796,113320.0,113300.0,0.0507]
[1761737449430,0.41764531,113320.0,113300.0,0.0507]
[1761737450767,0.3911137,113320.0,113310.0,0.0507]
[1761737452143,0.0511137,113320.0,113310.0,0.0507]
[1761737452347,0.00831404,113320.0,113310.0,0.0507]
[1761737452760,4.833e-05,113320.0,113310.0,0.0507]
[1761737453021,4.833e-05,113320.0,113310.0,0.06835069]
[1761737453932,0.03479474,113330.0,113310.0,0.57312893]
[1761737454154,0.02652903,113330.0,113320.0,0.15816814]
[1761737454414,0.02652903,113330.0,113320.0,0.14051901]
[1761737462921,2.0,113350.0,113330.0,0.01203]
[1761737463142,2.02780246,113350.0,113330.0,0.0507]
[1761737463358,2.02780246,113350.0,113330.0,0.02816]
[1761737463359,0.00873551,113350.0,113330.0,0.02816]
[1761737464015,0.00048331,113350.0,113330.0,0.02816]
[1761737464722,0.01032577,113350.0,113330.0,0.02816]
[1761737464981,0.00873551,113350.0,113330.0,0.02816]
[1761737465181,0.03525767,113350.0,113330.0,0.0507]
[1761737465453,0.03525529,113350.0,113330.0,0.0507]
[1761737465693,0.03525529,113350.0,113330.0,0.0659549]
[1761737465920,0.03525529,113350.0,113340.0,0.01613]
[1761737466407,0.03525529,113350.0,113330.0,0.03457]
[1761737466823,0.03525529,113350.0,113340.0,0.02816]
[1761737467245,0.03525529,113350.0,113340.0,0.02747]
[1761737467442,0.03525529,113350.0,113340.0,0.05043]
[1761737467870,0.04501631,113350.0,113340.0,0.05043]
[1761737468488,0.04501631,113350.0,113340.0,0.02747]
[1761737470429,0.04501631,113350.0,113340.0,0.05043]
[1761737470836,0.01849415,113350.0,113340.0,0.05043]
[1761737471620,0.01870575,113350.0,113340.0,0.05043]
[1761737472460,0.01870575,113350.0,113340.0,0.06807602]
[1761737472461,0.00069491,113350.0,113340.0,0.06807602]
[1761737473999,0.00069491,113350.0,113340.0,0.05043]
[1761737475264,0.01065462,113350.0,113340.0,0.05043]
[1761737475438,0.01065462,113350.0,113340.0,0.02747]
[1761737475647,0.01065462,113350.0,113330.0,0.03462]
[1761737475648,0.05587186,113350.0,113330.0,0.03462]
[1761737475858,0.05587186,113350.0,113330.0,0.12443901]
[1761737476745,0.05587186,113350.0,113340.0,0.01586]
[1761737476937,0.01890524,113350.0,113340.0,0.01586]
[1761737477137,0.01890524,113350.0,113340.0,0.05034]
[1761737477986,0.00894553,113350.0,113340.0,0.06798602]
[1761737478450,0.00069491,113350.0,113340.0,0.06798602]
[1761737478788,0.00069491,113350.0,113340.0,0.14015901]
[1761737479000,0.00069491,113350.0,113340.0,0.17302393]
[1761737481131,0.00069491,113350.0,113340.0,0.15780503]
[1761737483031,0.00069491,113350.0,113340.0,0.56472619]
[1761737483260,0.00069491,113350.0,113340.0,0.54708017]
[1761737484370,0.00069491,113350.0,113340.0,0.54808017]
[1761737484869,0.00069491,113350.0,113340.0,0.17634129]
[1761737485089,0.00069491,113350.0,113340.0,0.19099154]
[1761737485331,0.00069491,113350.0,113340.0,0.25055379]
[1761737485574,0.00069491,113350.0,113340.0,0.23590354]
[1761737485832,0.00069491,113350.0,113340.0,0.60664242]
[1761737486589,0.00069491,113350.0,113340.0,0.23590354]
[1761737487471,0.00069491,113350.0,113340.0,0.60664242]
[1761737489378,0.00069491,113350.0,113340.0,0.23590354]
[1761737489588,0.00069491,113350.0,113340.0,0.54808017]
[1761737490347,0.00069491,113350.0,113340.0,0.17734129]
[1761737492179,0.00069491,113350.0,113340.0,0.54808017]
[1761737492825,0.00069491,113350.0,113340.0,0.88808017]
[1761737493182,0.00069491,113350.0,113340.0,1.25881905]
[1761737493494,0.00069491,113350.0,113340.0,1.34863806]
[1761737493694,0.00069491,113350.0,113340.0,0.98615421]
[1761737494827,0.00069491,113350.0,113340.0,0.52559632]
[1761737495130,0.00069491,113350.0,113340.0,0.88808017]
[1761737495889,0.00069491,113350.0,113340.0,0.51734129]
[1761737496497,0.00069491,113350.0,113340.0,0.48115901]
[1761737497055,2.0,113390.0,113350.0,0.03562]
[1761737497232,4.832e-05,113390.0,113360.0,0.10490901]
[1761737497434,4.832e-05,113390.0,113360.0,0.14052901]
[1761737497648,4.832e-05,113390.0,113370.0,0.03562]
[1761737498053,4.832e-05,113390.0,113370.0,0.02639]
[1761737498256,0.00961841,113390.0,113370.0,0.02639]
[1761737498697,0.00961841,113390.0,113370.0,0.05071]
[1761737499514,0.00961841,113390.0,113370.0,0.06765719]
[1761737499821,0.00961841,113390.0,113370.0,0.05071]
[1761737500408,0.00961841,113390.0,113380.0,0.01509]
[1761737500658,0.00961841,113390.0,113380.0,0.02639]
[1761737501431,0.00961841,113390.0,113380.0,0.0113]
[1761737501649,0.00961841,113390.0,113370.0,0.03562]
[1761737501855,0.00961841,113390.0,113370.0,0.12543901]
[1761737502058,0.00961841,113390.0,113360.0,0.03562]
[1761737502059,0.04458025,113390.0,113360.0,0.03562]
[1761737502238,0.04458025,113390.0,113360.0,0.14052901]
[1761737502444,0.04458025,113390.0,113370.0,0.0113]
[1761737502740,0.04458025,113390.0,113380.0,0.01509]
[1761737502942,0.04458025,113390.0,113370.0,0.03562]
[1761737503273,0.04542632,113390.0,113370.0,0.02639]
[1761737503621,0.00063461,113380.0,113370.0,0.02639]
[1761737506235,0.00063461,113380.0,113370.0,0.05071]
[1761737507311,0.00063461,113380.0,113370.0,0.06765719]
[1761737507638,0.00063461,113380.0,113370.0,0.02639]
[1761737509119,0.00889812,113380.0,113370.0,0.02639]
[1761737514168,0.00889812,113380.0,113370.0,0.05071]
[1761737518360,0.00889812,113380.0,113370.0,0.05571]
[1761737521012,0.00889812,113380.0,113370.0,0.07335135]
[1761737523869,0.00847509,113360.0,113340.0,0.03562]
[1761737524075,0.00847509,113360.0,113340.0,0.02639]
[1761737524279,0.00021158,113360.0,113340.0,0.02639]
[1761737524686,0.00021158,113360.0,113350.0,0.003]
[1761737525130,0.00021158,113360.0,113330.0,0.12543901]
[1761737525342,0.00021158,113360.0,113340.0,0.003]
[1761737526787,0.00021158,113360.0,113330.0,0.10111901]
[1761737526917,0.00021158,113360.0,113340.0,0.05071]
[1761737527731,0.00121158,113360.0,113340.0,0.05071]
[1761737527935,0.00121158,113360.0,113350.0,0.05115]
[1761737528149,0.00947509,113360.0,113350.0,0.06879446]
[1761737528566,0.00947509,113360.0,113350.0,0.15861347]
[1761737528774,0.00121158,113360.0,113350.0,0.15861347]
[1761737529813,0.00021158,113360.0,113350.0,0.15861347]
[1761737530239,0.00021158,113360.0,113350.0,0.16061347]
[1761737532817,0.00021158,113360.0,113350.0,0.12039901]
[1761737533029,0.00021158,113360.0,113350.0,0.14323901]
[1761737538987,0.00021158,113360.0,113350.0,0.16088347]
[1761737540817,0.00021158,113360.0,113350.0,0.21513637]
[1761737541037,0.00021158,113360.0,113350.0,0.19749191]
[1761737541254,0.00021158,113360.0,113350.0,0.14323901]
[1761737541515,0.00021158,113360.0,113350.0,0.16088347]
[1761737546267,0.00021158,113360.0,113350.0,0.53122898]
[1761737546646,0.00021158,113360.0,113350.0,0.51358452]
[1761737548501,0.00021158,113360.0,113350.0,0.14323901]
[1761737548709,0.00021158,113360.0,113350.0,0.53122898]
[1761737548889,0.00021158,113360.0,113350.0,0.51358452]
[1761737554451,0.00021158,113360.0,113350.0,0.14323901]
[1761737554821,0.00021158,113360.0,113350.0,0.53122898]
[1761737555040,0.00021158,113360.0,113350.0,0.51358452]
[1761737555707,0.00021158,113360.0,113350.0,0.14323901]
[1761737563207,2.0,113370.0,113350.0,0.14323901]
[1761737563380,2.02730686,113370.0,113350.0,0.14323901]
[1761737563585,0.02730686,113370.0,113350.0,0.14323901]
[1761737563763,0.00825907,113370.0,113350.0,0.14323901]
[1761737564585,0.00825907,113370.0,113350.0,0.14123901]
[1761737566235,0.00825907,113370.0,113350.0,0.02858]
[1761737566897,0.00825907,113370.0,113350.0,0.05235]
[1761737567654,0.00825907,113370.0,113360.0,0.02661]
[1761737568368,2.0,113370.0,113360.0,0.02661]
[1761737568591,0.01904779,113370.0,113360.0,0.02661]
[1761737568817,2.0,113370.0,113360.0,0.02661]
[1761737569040,0.01904779,113370.0,113360.0,0.02661]
[1761737569304,2.0,113370.0,113360.0,0.02661]
[1761737569519,0.01904779,113370.0,113360.0,0.02661]
[1761737569753,2.0,113370.0,113360.0,0.02661]
[1761737569976,0.01904779,113370.0,113360.0,0.02661]
[1761737570218,2.0,113370.0,113360.0,0.02661]
[1761737570466,0.01904779,113370.0,113360.0,0.02661]
[1761737570692,2.0,113370.0,113360.0,0.02661]
[1761737570921,0.01904779,113370.0,113360.0,0.02661]
[1761737571126,2.0,113370.0,113360.0,0.05038]
[1761737571350,0.01904779,113370.0,113360.0,0.02661]